[Event "Summer Prague Open-A 2024"]
[Site "Prague"]
[Date "2024.08.02"]
[Round "1.20"]
[White "Aarush Rajesh"]
[Black "Golenia, Wojciech"]
[Result "0-1"]
[Annotator "ChessBase"]
[ECO "E20"]
[WhiteElo "1892"]
[BlackElo "2212"]
[PlyCount "94"]
[EventDate "2024.08.02"]
[EventType "swiss"]
[EventCountry "CZE"]
[SourceTitle "playchess.com"]
[Source "ChessBase"]
[SourceQuality "1"]
[TimeControl "40/5400+30:1800+30"]

1. d4 {[%emt 0:00:02]} Nf6 {[%emt 0:00:13]} 2. c4 {[%emt 0:00:04]} e6 {[%emt 0:00:05]} 3. Nc3 {[%emt 0:00:04]} Bb4 {[%emt 0:00:11]} 4. f3 {[%emt 0:00:04]} c5 {[%emt 0:00:32]} 5. d5 {[%emt 0:00:02]} O-O {[%emt 0:01:48]} 6. e4 {[%emt 0:00:05]} Re8 {[%emt 0:00:59]} 7. Nge2 {[%emt 0:00:36]} d6 {[%emt 0:01:22]} 8. Ng3 {[%emt 0:00:32]} Nbd7 {[%emt 0:06:55]} 9. Be2 {[%emt 0:07:26]} exd5 {[%emt 0:03:13]} 10. cxd5 {[%emt 0:00:32]} Ne5 {[%emt 0:01:56]} 11. O-O {[%emt 0:02:08]} a6 {[%emt 0:03:29]} 12. a4 {[%emt 0:04:01]} c4 {[%emt 0:04:57]} 13. Be3 {[%emt 0:03:22]} Bd7 {[%emt 0:07:49]} 14. Bd4 {[%emt 0:09:53]} Rc8 {[%emt 0:00:38]} 15. Nf5 {[%emt 0:15:34]} Bxf5 {[%emt 0:06:05]} 16. exf5 {[%emt 0:00:07]} Bc5 {[%emt 0:09:23]} 17. Bxc5 {[%emt 0:07:59]} Rxc5 {[%emt 0:00:51]} 18. Qd4 {[%emt 0:06:42]} Qb6 {[%emt 0:04:25]} 19. f4 {[%emt 0:09:11]} Ned7 {[%emt 0:01:31]} 20. Bf3 {[%emt 0:07:40]} Qxb2 {[%emt 0:06:57]} 21. Ra2 {[%emt 0:02:20]} Qb6 {[%emt 0:02:05]} 22. Rb1 {[%emt 0:01:10]} Qa5 {[%emt 0:04:08]} 23. Rxb7 {[%emt 0:09:25]} Rc7 {[%emt 0:06:33]} 24. Rxc7 {[%emt 0:03:31]} Qxc7 {[%emt 0:00:06]} 25. Rb2 {[%emt 0:02:32]} Nc5 {[%emt 0:06:04]} 26. Qxc4 {[%emt 0:03:31]} Re1+ {[%emt 0:01:37]} 27. Kf2 {[%emt 0:00:02]} Rc1 {[%emt 0:00:04]} 28. Rb3 {[%emt 0:02:51]} h5 {[%emt 0:02:39]} 29. Kg3 {[%emt 0:01:27]} Nce4+ {[%emt 0:03:18]} 30. Qxe4 {[%emt 0:00:16]} Nxe4+ {[%emt 0:01:06]} 31. Nxe4 {[%emt 0:00:05]} Rc4 {[%emt 0:01:10]} 32. Ng5 {[%emt 0:01:35]} h4+ {[%emt 0:01:19]} 33. Kg4 {[%emt 0:01:02]} Rxf4+ {[%emt 0:00:13]} 34. Kxf4 {[%emt 0:00:15]} Qc4+ {[%emt 0:00:19]} 35. Ne4 {[%emt 0:00:06]} Qxb3 {[%emt 0:00:15]} 36. Nxd6 {[%emt 0:00:31]} Qb8 {[%emt 0:00:25]} 37. Ke5 {[%emt 0:00:39]} Kf8 {[%emt 0:00:05]} 38. f6 {[%emt 0:00:34]} gxf6+ {[%emt 0:00:04]} 39. Kxf6 {[%emt 0:00:04]} Qxd6+ {[%emt 0:00:11]} 40. Kg5 {[%emt 0:00:04]} Qxh2 {[%emt 0:00:23]} 41. d6 {[%emt 0:30:23]} Qg3+ {[%emt 0:30:25]} 42. Kh5 {[%emt 0:00:21]} h3 {[%emt 0:00:18]} 43. gxh3 {[%emt 0:00:02]} Qxf3+ {[%emt 0:00:22]} 44. Kg5 {[%emt 0:00:20]} Kg7 {[%emt 0:00:12]} 45. d7 {[%emt 0:00:07]} f6+ {[%emt 0:00:04]} 46. Kh4 {[%emt 0:00:04]} Qf4+ {[%emt 0:00:03]} 47. Kh5 {[%emt 0:00:03]} Qg5# {[%emt 0:00:03]} 0-1

[Event "Summer Prague Open-A 2024"]
[Site "Prague"]
[Date "2024.08.02"]
[Round "1.21"]
[White "Jun, Rudolf"]
[Black "Machala, Vladislav"]
[Result "1-0"]
[Annotator "ChessBase"]
[ECO "B13"]
[WhiteElo "2198"]
[BlackElo "1891"]
[PlyCount "45"]
[EventDate "2024.08.02"]
[EventType "swiss"]
[EventCountry "CZE"]
[SourceTitle "playchess.com"]
[Source "ChessBase"]
[SourceQuality "1"]
[TimeControl "40/5400+30:1800+30"]

1. e4 {[%emt 0:00:04]} c6 {[%emt 0:00:27]} 2. d4 {[%emt 0:00:22]} d5 {[%emt 0:00:35]} 3. exd5 {[%emt 0:00:10]} cxd5 {[%emt 0:00:09]} 4. c4 {[%emt 0:00:09]} Nf6 {[%emt 0:00:19]} 5. Nc3 {[%emt 0:00:08]} Nc6 {[%emt 0:01:55]} 6. Nf3 {[%emt 0:01:08]} Bg4 {[%emt 0:02:08]} 7. cxd5 {[%emt 0:02:07]} Nxd5 {[%emt 0:00:02]} 8. Bc4 {[%emt 0:01:16]} Nb6 {[%emt 0:02:28]} 9. Bxf7+ {[%emt 0:02:02]} Kxf7 {[%emt 0:00:46]} 10. Ng5+ {[%emt 0:00:40]} Ke8 {[%emt 0:03:14]} 11. Qxg4 {[%emt 0:00:13]} Qxd4 {[%emt 0:00:10]} 12. Qe2 {[%emt 0:04:37]} Qe5 {[%emt 0:16:14]} 13. Be3 {[%emt 0:00:33]} Nd4 {[%emt 0:04:12]} 14. Bxd4 {[%emt 0:01:10]} Qxg5 {[%emt 0:00:02]} 15. Nb5 {[%emt 0:02:03]} Rd8 {[%emt 0:20:34]} 16. Bxb6 {[%emt 0:06:44]} axb6 {[%emt 0:00:14]} 17. O-O {[%emt 0:02:33]} Kf7 {[%emt 0:11:24]} 18. Rfe1 {[%emt 0:01:39]} e5 {[%emt 0:04:20]} 19. Qc4+ {[%emt 0:01:02]} Kg6 {[%emt 0:00:20]} 20. Re3 {[%emt 0:00:46]} Bc5 {[%emt 0:14:41]} 21. Qe6+ {[%emt 0:00:36]} Qf6 {[%emt 0:04:14]} 22. Rg3+ {[%emt 0:00:06]} Kh5 {[%emt 0:02:43]} 23. Qg4+ {[%emt 0:00:05]} 1-0

[Event "Summer Prague Open-A 2024"]
[Site "Prague"]
[Date "2024.08.02"]
[Round "1.22"]
[White "Schwartz, Michael"]
[Black "Flajsman, Pavel"]
[Result "1/2-1/2"]
[Annotator "ChessBase"]
[ECO "C50"]
[WhiteElo "1890"]
[BlackElo "2188"]
[PlyCount "76"]
[EventDate "2024.08.02"]
[EventType "swiss"]
[EventCountry "CZE"]
[SourceTitle "playchess.com"]
[Source "ChessBase"]
[SourceQuality "1"]
[TimeControl "40/5400+30:1800+30"]

1. e4 {[%emt 0:00:16]} e5 {[%emt 0:00:08]} 2. Nf3 {[%emt 0:00:05]} Nc6 {[%emt 0:00:04]} 3. Bc4 {[%emt 0:00:11]} Nf6 {[%emt 0:00:07]} 4. d3 {[%emt 0:00:07]} Bc5 {[%emt 0:00:23]} 5. Nc3 {[%emt 0:00:16]} h6 {[%emt 0:00:46]} 6. a3 {[%emt 0:00:52]} a6 {[%emt 0:00:31]} 7. O-O {[%emt 0:00:55]} O-O {[%emt 0:00:19]} 8. Be3 {[%emt 0:01:57]} Bxe3 {[%emt 0:02:03]} 9. fxe3 {[%emt 0:00:12]} d6 {[%emt 0:00:50]} 10. Qe1 {[%emt 0:02:53]} Be6 {[%emt 0:06:35]} 11. Bxe6 {[%emt 0:03:40]} fxe6 {[%emt 0:01:34]} 12. d4 {[%emt 0:00:20]} Nd7 {[%emt 0:09:11]} 13. Rd1 {[%emt 0:01:23]} Qe8 {[%emt 0:12:30]} 14. Qg3 {[%emt 0:02:03]} exd4 {[%emt 0:14:02]} 15. exd4 {[%emt 0:01:49]} Ne7 {[%emt 0:00:31]} 16. Nh4 {[%emt 0:25:58]} Qh5 {[%emt 0:25:11]} 17. Qh3 {[%emt 0:02:29]} Rxf1+ {[%emt 0:00:37]} 18. Rxf1 {[%emt 0:00:11]} Nf8 {[%emt 0:00:24]} 19. Qg3 {[%emt 0:11:40]} Nfg6 {[%emt 0:01:51]} 20. Nxg6 {[%emt 0:00:14]} Nxg6 {[%emt 0:00:13]} 21. Qf3 {[%emt 0:00:43]} Qxf3 {[%emt 0:03:22]} 22. Rxf3 {[%emt 0:00:10]} e5 {[%emt 0:01:24]} 23. d5 {[%emt 0:01:25]} c6 {[%emt 0:01:13]} 24. g3 {[%emt 0:00:59]} Rf8 {[%emt 0:02:16]} 25. Kf2 {[%emt 0:01:13]} Ne7 {[%emt 0:00:43]} 26. Rxf8+ {[%emt 0:03:16]} Kxf8 {[%emt 0:00:04]} 27. Ke3 {[%emt 0:01:16]} Ke8 {[%emt 0:04:58]} 28. Kd3 {[%emt 0:00:12]} Kd7 {[%emt 0:00:04]} 29. Kc4 {[%emt 0:03:03]} Kc7 {[%emt 0:00:07]} 30. b4 {[%emt 0:01:41]} Ng8 {[%emt 0:04:30]} 31. Kd3 {[%emt 0:06:45]} Nf6 {[%emt 0:00:23]} 32. h3 {[%emt 0:00:40]} Nh5 {[%emt 0:04:34]} 33. Ne2 {[%emt 0:00:10]} cxd5 {[%emt 0:00:33]} 34. exd5 {[%emt 0:00:05]} b5 {[%emt 0:00:24]} 35. c4 {[%emt 0:02:06]} Nf6 {[%emt 0:02:55]} 36. Nc3 {[%emt 0:00:13]} Kb6 {[%emt 0:00:44]} 37. a4 {[%emt 0:00:19]} bxc4+ {[%emt 0:01:04]} 38. Kxc4 {[%emt 0:00:06]} Nh5 {[%emt 0:00:08]} 1/2-1/2

[Event "Summer Prague Open-A 2024"]
[Site "Prague"]
[Date "2024.08.02"]
[Round "1.23"]
[White "Golenia, Jan"]
[Black "Alimbetov, Dias"]
[Result "1/2-1/2"]
[Annotator "ChessBase"]
[ECO "A06"]
[WhiteElo "2188"]
[BlackElo "1887"]
[PlyCount "96"]
[EventDate "2024.08.02"]
[EventType "swiss"]
[EventCountry "CZE"]
[SourceTitle "playchess.com"]
[Source "ChessBase"]
[SourceQuality "1"]
[TimeControl "40/5400+30:1800+30"]

1. Nf3 {[%emt 0:00:22]} d5 {[%emt 0:03:16]} 2. b3 {[%emt 0:00:31]} Nf6 {[%emt 0:06:12]} 3. Bb2 {[%emt 0:00:37]} g6 {[%emt 0:00:49]} 4. e3 {[%emt 0:01:55]} Bg7 {[%emt 0:00:39]} 5. c4 {[%emt 0:01:25]} c6 {[%emt 0:02:23]} 6. Be2 {[%emt 0:01:42]} O-O 7. O-O {[%emt 0:07:53]} Nbd7 {[%emt 0:10:40]} 8. d4 {[%emt 0:00:30]} b6 {[%emt 0:06:33]} 9. Nc3 {[%emt 0:02:04]} Ne4 {[%emt 0:06:57]} 10. Nxe4 {[%emt 0:10:27]} dxe4 {[%emt 0:00:41]} 11. Ng5 {[%emt 0:00:51]} Nf6 {[%emt 0:02:12]} 12. f3 {[%emt 0:03:30]} Bf5 {[%emt 0:07:21]} 13. fxe4 Nxe4 {[%emt 0:00:39]} 14. g4 {[%emt 0:20:41]} Nxg5 {[%emt 0:13:28]} 15. gxf5 {[%emt 0:00:09]} e6 {[%emt 0:00:32]} 16. fxg6 {[%emt 0:03:51]} hxg6 {[%emt 0:02:18]} 17. Qe1 {[%emt 0:03:59]} Qe7 {[%emt 0:02:21]} 18. Qg3 {[%emt 0:07:18]} Rad8 {[%emt 0:04:36]} 19. h4 {[%emt 0:04:18]} Ne4 {[%emt 0:05:46]} 20. Qg2 {[%emt 0:00:07]} f5 {[%emt 0:03:56]} 21. Qxg6 {[%emt 0:02:47]} Qxh4 {[%emt 0:02:27]} 22. Rf4 {[%emt 0:04:07]} Qg5+ {[%emt 0:06:40]} 23. Qxg5 {[%emt 0:00:05]} Nxg5 {[%emt 0:00:03]} 24. Kg2 {[%emt 0:02:14]} e5 {[%emt 0:02:01]} 25. Rh4 {[%emt 0:02:55]} exd4 {[%emt 0:05:41]} 26. Bxd4 {[%emt 0:03:02]} Rfe8 {[%emt 0:02:50]} 27. Bxg7 {[%emt 0:03:10]} Kxg7 {[%emt 0:00:05]} 28. Rg1 {[%emt 0:00:38]} Nf7 {[%emt 0:02:30]} 29. Bh5 {[%emt 0:07:12]} Rd2+ {[%emt 0:00:45]} 30. Kf3+ {[%emt 0:00:09]} Kf8 {[%emt 0:00:29]} 31. Rf4 {[%emt 0:03:01]} Re5 {[%emt 0:00:31]} 32. Rg6 {[%emt 0:00:54]} Rh2 {[%emt 0:00:27]} 33. Rxc6 {[%emt 0:01:48]} Rxh5 {[%emt 0:00:02]} 34. Rc8+ {[%emt 0:00:05]} Kg7 {[%emt 0:00:06]} 35. Rc7 {[%emt 0:00:04]} Rh3+ {[%emt 0:00:40]} 36. Kf2 {[%emt 0:00:25]} Rh2+ {[%emt 0:00:21]} 37. Kf3 {[%emt 0:00:07]} Rxa2 {[%emt 0:00:19]} 38. e4 {[%emt 0:00:01]} Ra3 {[%emt 0:01:02]} 39. Rxf5 {[%emt 0:01:25]} Rxf5+ {[%emt 0:00:29]} 40. exf5 {[%emt 0:00:05]} Rxb3+ {[%emt 0:00:09]} 41. Ke4 {[%emt 0:30:05]} a5 {[%emt 0:30:50]} 42. Kd5 {[%emt 0:01:29]} Kf6 {[%emt 0:00:44]} 43. c5 {[%emt 0:00:16]} Rb5 {[%emt 0:00:51]} 44. Rc6+ {[%emt 0:01:20]} Kxf5 {[%emt 0:00:21]} 45. Rxb6 {[%emt 0:00:10]} Rxb6 {[%emt 0:00:33]} 46. cxb6 {[%emt 0:00:04]} Nd8 {[%emt 0:00:20]} 47. Kc5 {[%emt 0:00:29]} Ke6 {[%emt 0:00:46]} 48. Kb5 {[%emt 0:00:07]} Ke5 1/2-1/2

[Event "Summer Prague Open-A 2024"]
[Site "Prague"]
[Date "2024.08.02"]
[Round "1.24"]
[White "Svadlenka, Michal"]
[Black "Stocek, Martin"]
[Result "0-1"]
[Annotator "ChessBase"]
[ECO "B18"]
[WhiteElo "1886"]
[BlackElo "2176"]
[PlyCount "189"]
[EventDate "2024.08.02"]
[EventType "swiss"]
[EventCountry "CZE"]
[SourceTitle "playchess.com"]
[Source "ChessBase"]
[SourceQuality "1"]
[TimeControl "40/5400+30:1800+30"]

1. e4 {[%emt 0:00:02]} c6 {[%emt 0:00:31]} 2. d4 {[%emt 0:00:05]} d5 {[%emt 0:00:06]} 3. Nc3 {[%emt 0:00:03]} dxe4 {[%emt 0:00:06]} 4. Nxe4 {[%emt 0:00:06]} Bf5 {[%emt 0:00:11]} 5. Ng3 {[%emt 0:00:06]} Bg6 {[%emt 0:00:05]} 6. Nf3 {[%emt 0:00:18]} Nd7 {[%emt 0:00:12]} 7. Nh4 {[%emt 0:03:30]} e6 {[%emt 0:05:15]} 8. Nxg6 {[%emt 0:00:14]} hxg6 {[%emt 0:00:06]} 9. Bd3 {[%emt 0:01:44]} Qc7 {[%emt 0:05:45]} 10. c3 {[%emt 0:01:24]} Ngf6 {[%emt 0:04:07]} 11. h3 {[%emt 0:09:59]} c5 {[%emt 0:21:08]} 12. dxc5 {[%emt 0:02:54]} O-O-O {[%emt 0:03:19]} 13. Qe2 {[%emt 0:04:55]} Bxc5 {[%emt 0:10:27]} 14. Ne4 {[%emt 0:07:04]} Rh5 {[%emt 0:09:45]} 15. O-O {[%emt 0:08:38]} Nd5 {[%emt 0:03:01]} 16. Nxc5 {[%emt 0:08:38]} Nxc5 {[%emt 0:01:36]} 17. Bc2 {[%emt 0:02:01]} Rdh8 {[%emt 0:03:03]} 18. a3 {[%emt 0:10:22]} g5 {[%emt 0:01:07]} 19. Qf3 {[%emt 0:05:52]} Nf6 {[%emt 0:03:19]} 20. Qg3 {[%emt 0:10:30]} g4 {[%emt 0:02:42]} 21. Qxc7+ {[%emt 0:05:07]} Kxc7 {[%emt 0:00:02]} 22. Re1 {[%emt 0:01:33]} gxh3 {[%emt 0:00:37]} 23. Bf4+ {[%emt 0:02:40]} Kc8 {[%emt 0:00:15]} 24. b4 {[%emt 0:03:15]} Ncd7 {[%emt 0:00:26]} 25. Be4 {[%emt 0:05:11]} Nxe4 {[%emt 0:05:42]} 26. Rxe4 {[%emt 0:00:11]} hxg2 {[%emt 0:00:54]} 27. Kxg2 {[%emt 0:01:10]} Rd5 {[%emt 0:02:16]} 28. Rc4+ {[%emt 0:02:48]} Kd8 {[%emt 0:00:11]} 29. Be3 {[%emt 0:00:37]} a6 {[%emt 0:04:50]} 30. a4 {[%emt 0:00:48]} Ne5 {[%emt 0:01:53]} 31. Bb6+ {[%emt 0:01:42]} Ke7 {[%emt 0:00:07]} 32. Rc7+ {[%emt 0:02:11]} Rd7 {[%emt 0:00:06]} 33. b5 {[%emt 0:00:37]} Rh4 {[%emt 0:08:13]} 34. bxa6 {[%emt 0:00:42]} bxa6 {[%emt 0:00:12]} 35. Rc8 {[%emt 0:00:21]} Rc4 {[%emt 0:02:19]} 36. Rxc4 {[%emt 0:00:36]} Nxc4 {[%emt 0:00:03]} 37. Bc5+ {[%emt 0:00:17]} Ke8 {[%emt 0:02:29]} 38. Rb1 {[%emt 0:00:14]} Rc7 {[%emt 0:00:33]} 39. Rb8+ {[%emt 0:00:36]} Kd7 {[%emt 0:00:19]} 40. Bf8 {[%emt 0:00:43]} g6 {[%emt 0:02:12]} 41. Bg7 {[%emt 0:30:38]} Kc6 {[%emt 0:03:13]} 42. Kf3 {[%emt 0:00:00]} Nb6 {[%emt 0:06:38]} 43. a5 {[%emt 0:00:00]} Nc4 {[%emt 0:00:04]} 44. Bd4 {[%emt 0:00:00]} Nxa5 {[%emt 0:04:32]} 45. Rb6+ {[%emt 0:00:00]} Kd5 {[%emt 0:00:25]} 46. Rxa6 {[%emt 0:00:00]} Nb3 {[%emt 0:00:41]} 47. Bf6 {[%emt 0:00:00]} e5 {[%emt 0:00:27]} 48. Kg4 {[%emt 0:00:00]} Rc4+ {[%emt 0:01:40]} 49. Kg5 {[%emt 0:00:00]} Nc5 {[%emt 0:01:04]} 50. Ra5 {[%emt 0:00:00]} Ke6 {[%emt 0:00:31]} 51. f3 {[%emt 0:03:43]} Rxc3 {[%emt 0:02:32]} 52. Bg7 {[%emt 0:01:49]} Rc1 {[%emt 0:01:58]} 53. Kg4 {[%emt 0:00:35]} Rg1+ {[%emt 0:07:36]} 54. Kh3 {[%emt 0:00:20]} Nd7 {[%emt 0:00:41]} 55. Kh2 {[%emt 0:00:33]} Rg5 {[%emt 0:00:36]} 56. Ra6+ {[%emt 0:00:34]} Ke7 {[%emt 0:00:11]} 57. Ra7 {[%emt 0:00:30]} Kd6 {[%emt 0:01:59]} 58. Ra6+ {[%emt 0:00:27]} Kd5 {[%emt 0:00:13]} 59. Ra7 {[%emt 0:00:32]} Kc6 {[%emt 0:00:52]} 60. Ra6+ {[%emt 0:00:26]} Kb7 {[%emt 0:00:49]} 61. Rd6 {[%emt 0:00:26]} Kc7 {[%emt 0:00:06]} 62. Rd5 {[%emt 0:00:27]} Kc6 {[%emt 0:00:16]} 63. Ra5 {[%emt 0:00:29]} Nc5 {[%emt 0:00:48]} 64. Bf8 {[%emt 0:00:39]} Ne6 {[%emt 0:00:23]} 65. Be7 {[%emt 0:00:31]} Rf5 {[%emt 0:00:08]} 66. Kg3 {[%emt 0:00:25]} Nd4 {[%emt 0:00:19]} 67. Ra3 {[%emt 0:00:38]} Kd5 {[%emt 0:00:29]} 68. Bd8 {[%emt 0:00:24]} Nc6 {[%emt 0:02:27]} 69. Bc7 {[%emt 0:00:22]} e4 {[%emt 0:00:54]} 70. fxe4+ {[%emt 0:00:44]} Kxe4 {[%emt 0:00:02]} 71. Ra8 {[%emt 0:00:27]} Nd4 {[%emt 0:00:39]} 72. Re8+ {[%emt 0:00:28]} Ne6 {[%emt 0:00:03]} 73. Bb6 {[%emt 0:00:25]} Rg5+ {[%emt 0:00:20]} 74. Kf2 {[%emt 0:00:17]} Rb5 {[%emt 0:00:02]} 75. Ba7 {[%emt 0:00:30]} Kf4 {[%emt 0:00:33]} 76. Bb8+ {[%emt 0:00:42]} Kg4 {[%emt 0:00:01]} 77. Bd6 {[%emt 0:00:38]} Rb2+ {[%emt 0:00:13]} 78. Ke3 {[%emt 0:00:25]} g5 {[%emt 0:01:11]} 79. Re7 {[%emt 0:00:22]} Rb3+ {[%emt 0:00:04]} 80. Kd2 {[%emt 0:00:48]} Rf3 {[%emt 0:00:13]} 81. Ra7 {[%emt 0:00:24]} f5 {[%emt 0:00:40]} 82. Ra1 {[%emt 0:00:26]} f4 {[%emt 0:00:46]} 83. Re1 {[%emt 0:00:28]} Nd4 {[%emt 0:00:15]} 84. Rd1 {[%emt 0:00:42]} Rb3 {[%emt 0:00:56]} 85. Ke1 {[%emt 0:00:26]} Nf3+ {[%emt 0:00:27]} 86. Kf1 {[%emt 0:00:21]} Rb2 {[%emt 0:00:39]} 87. Bc5 {[%emt 0:00:17]} Kg3 {[%emt 0:00:53]} 88. Rc1 {[%emt 0:00:52]} Rh2 {[%emt 0:00:39]} 89. Rc3 {[%emt 0:00:31]} Rh1+ {[%emt 0:00:28]} 90. Ke2 {[%emt 0:00:06]} Re1+ {[%emt 0:00:04]} 91. Kd3 {[%emt 0:00:10]} g4 {[%emt 0:00:55]} 92. Rc2 {[%emt 0:00:27]} Re8 {[%emt 0:00:18]} 93. Bf2+ {[%emt 0:00:38]} Kh3 {[%emt 0:00:09]} 94. Bb6 {[%emt 0:00:49]} Ne1+ {[%emt 0:00:07]} 95. Kd4 0-1

[Event "Summer Prague Open-A 2024"]
[Site "Prague"]
[Date "2024.08.02"]
[Round "1.25"]
[White "Toure, Vasanth"]
[Black "Madle, Robin"]
[Result "1-0"]
[Annotator "ChessBase"]
[ECO "B13"]
[WhiteElo "2176"]
[BlackElo "1884"]
[PlyCount "83"]
[EventDate "2024.08.02"]
[EventType "swiss"]
[EventCountry "CZE"]
[SourceTitle "playchess.com"]
[Source "ChessBase"]
[SourceQuality "1"]
[TimeControl "40/5400+30:1800+30"]

1. e4 {[%emt 0:02:23]} c6 {[%emt 0:00:09]} 2. d4 {[%emt 0:00:07]} d5 {[%emt 0:00:05]} 3. exd5 {[%emt 0:00:04]} cxd5 {[%emt 0:00:05]} 4. Bd3 {[%emt 0:00:35]} Nf6 {[%emt 0:00:12]} 5. Nf3 {[%emt 0:03:13]} Bg4 {[%emt 0:01:30]} 6. O-O {[%emt 0:00:10]} e6 {[%emt 0:00:45]} 7. Re1 {[%emt 0:00:12]} Be7 {[%emt 0:00:41]} 8. Bf4 {[%emt 0:05:56]} Nc6 {[%emt 0:06:20]} 9. c3 {[%emt 0:00:38]} O-O {[%emt 0:01:17]} 10. Nbd2 {[%emt 0:00:11]} Bd6 {[%emt 0:08:18]} 11. Bxd6 {[%emt 0:03:13]} Qxd6 {[%emt 0:01:34]} 12. Qb1 {[%emt 0:00:06]} Bxf3 {[%emt 0:18:25]} 13. Nxf3 {[%emt 0:00:12]} Qf4 {[%emt 0:00:27]} 14. Qc2 {[%emt 0:09:33]} g6 {[%emt 0:02:48]} 15. Qe2 {[%emt 0:04:06]} a6 {[%emt 0:06:11]} 16. a4 {[%emt 0:00:17]} Kg7 {[%emt 0:00:19]} 17. Nd2 {[%emt 0:07:47]} h5 {[%emt 0:01:30]} 18. Qe3 {[%emt 0:11:52]} Qc7 {[%emt 0:04:11]} 19. h3 {[%emt 0:00:38]} Rfe8 {[%emt 0:00:49]} 20. f4 {[%emt 0:19:22]} Ne7 {[%emt 0:06:15]} 21. Nf3 {[%emt 0:04:58]} Nf5 {[%emt 0:00:57]} 22. Qe5 {[%emt 0:00:28]} Qxe5 {[%emt 0:04:06]} 23. fxe5 {[%emt 0:00:01]} Nd7 {[%emt 0:02:38]} 24. Kf2 {[%emt 0:00:07]} b6 {[%emt 0:00:40]} 25. g4 {[%emt 0:02:02]} hxg4 {[%emt 0:00:12]} 26. hxg4 {[%emt 0:00:02]} Nh6 {[%emt 0:01:50]} 27. Kg3 {[%emt 0:00:24]} a5 {[%emt 0:01:03]} 28. Bb5 {[%emt 0:00:56]} Re7 {[%emt 0:01:13]} 29. Ng5 {[%emt 0:05:53]} Nf8 {[%emt 0:02:47]} 30. Rh1 {[%emt 0:02:10]} Raa7 {[%emt 0:03:03]} 31. Raf1 {[%emt 0:01:54]} Nd7 {[%emt 0:00:57]} 32. Rh2 {[%emt 0:03:04]} f5 {[%emt 0:05:25]} 33. Rfh1 {[%emt 0:04:22]} Nf7 {[%emt 0:02:39]} 34. Rh7+ {[%emt 0:00:29]} Kf8 {[%emt 0:00:47]} 35. Rxf7+ {[%emt 0:01:32]} Rxf7 {[%emt 0:00:07]} 36. Nxf7 {[%emt 0:00:03]} Kxf7 {[%emt 0:00:05]} 37. Rh7+ {[%emt 0:00:03]} Ke8 {[%emt 0:00:05]} 38. Rg7 {[%emt 0:00:39]} fxg4 {[%emt 0:00:22]} 39. Kxg4 {[%emt 0:03:38]} Kd8 {[%emt 0:01:01]} 40. Rxd7+ {[%emt 0:01:32]} Rxd7 {[%emt 0:00:05]} 41. Bxd7 {[%emt 0:30:09]} Kxd7 {[%emt 0:30:02]} 42. Kg5 {[%emt 0:00:06]} 1-0

[Event "Summer Prague Open-A 2024"]
[Site "Prague"]
[Date "2024.08.02"]
[Round "1.26"]
[White "Mohammad Abdulrahman, Alawadhi"]
[Black "Pujari, Rucha"]
[Result "0-1"]
[Annotator "ChessBase"]
[ECO "C95"]
[WhiteElo "1883"]
[BlackElo "2175"]
[PlyCount "102"]
[EventDate "2024.08.02"]
[EventType "swiss"]
[EventCountry "CZE"]
[SourceTitle "playchess.com"]
[Source "ChessBase"]
[SourceQuality "1"]
[TimeControl "40/5400+30:1800+30"]

1. e4 {[%emt 0:00:07]} e5 {[%emt 0:00:42]} 2. Nf3 {[%emt 0:00:20]} Nc6 {[%emt 0:00:04]} 3. Bb5 {[%emt 0:00:15]} a6 {[%emt 0:00:07]} 4. Ba4 {[%emt 0:00:05]} Nf6 {[%emt 0:00:12]} 5. O-O {[%emt 0:00:27]} Be7 {[%emt 0:00:07]} 6. Re1 {[%emt 0:00:07]} b5 {[%emt 0:00:24]} 7. Bb3 {[%emt 0:00:08]} d6 {[%emt 0:00:38]} 8. c3 {[%emt 0:00:11]} O-O {[%emt 0:00:36]} 9. h3 {[%emt 0:00:16]} Nb8 {[%emt 0:00:28]} 10. d4 {[%emt 0:01:53]} Nbd7 {[%emt 0:00:13]} 11. Nbd2 {[%emt 0:00:15]} Bb7 {[%emt 0:00:11]} 12. Bc2 {[%emt 0:02:36]} Re8 {[%emt 0:00:13]} 13. Nf1 {[%emt 0:00:13]} Bf8 {[%emt 0:00:29]} 14. Ng3 {[%emt 0:00:39]} a5 {[%emt 0:01:35]} 15. a3 {[%emt 0:09:15]} a4 {[%emt 0:03:52]} 16. Bd3 {[%emt 0:06:21]} Ba6 {[%emt 0:02:07]} 17. Qc2 {[%emt 0:09:12]} c5 {[%emt 0:02:25]} 18. dxe5 {[%emt 0:01:46]} dxe5 {[%emt 0:01:21]} 19. c4 {[%emt 0:00:10]} b4 {[%emt 0:04:25]} 20. b3 {[%emt 0:01:52]} axb3 {[%emt 0:09:59]} 21. Qxb3 {[%emt 0:00:30]} Nb8 {[%emt 0:01:25]} 22. axb4 {[%emt 0:08:39]} cxb4 {[%emt 0:01:43]} 23. Nf5 {[%emt 0:08:40]} Nfd7 {[%emt 0:04:03]} 24. Be3 {[%emt 0:05:56]} g6 {[%emt 0:04:51]} 25. Ng3 {[%emt 0:00:09]} Nc6 {[%emt 0:01:10]} 26. Bf1 {[%emt 0:04:16]} Qc7 {[%emt 0:07:59]} 27. Red1 {[%emt 0:02:16]} Reb8 {[%emt 0:03:00]} 28. Nd2 {[%emt 0:03:17]} Bc5 {[%emt 0:09:27]} 29. Qd3 {[%emt 0:05:55]} Bxe3 {[%emt 0:04:21]} 30. Qxe3 {[%emt 0:00:10]} Nd4 {[%emt 0:00:54]} 31. Rab1 {[%emt 0:02:57]} Nc5 {[%emt 0:01:34]} 32. Ne2 {[%emt 0:04:06]} Nc2 {[%emt 0:03:27]} 33. Qf3 {[%emt 0:00:32]} Na3 {[%emt 0:06:41]} 34. Rxb4 {[%emt 0:03:11]} Rxb4 {[%emt 0:00:27]} 35. Qxa3 {[%emt 0:00:05]} Ra4 {[%emt 0:03:47]} 36. Qc3 {[%emt 0:00:33]} Bb7 {[%emt 0:02:03]} 37. f3 {[%emt 0:00:27]} Ra3 {[%emt 0:01:09]} 38. Qc2 {[%emt 0:00:09]} Ra2 {[%emt 0:01:44]} 39. Qb1 {[%emt 0:00:14]} Ra1 {[%emt 0:05:14]} 40. Qxa1 {[%emt 0:00:06]} Rxa1 {[%emt 0:00:04]} 41. Rxa1 {[%emt 0:30:07]} Qb6 {[%emt 0:30:17]} 42. Rb1 {[%emt 0:01:29]} Qa7 {[%emt 0:00:17]} 43. Kh2 {[%emt 0:00:25]} Qa2 {[%emt 0:00:28]} 44. Rb5 {[%emt 0:00:06]} Qxd2 {[%emt 0:05:31]} 45. Rxc5 {[%emt 0:00:08]} Qd1 {[%emt 0:01:33]} 46. Kg1 {[%emt 0:00:29]} Ba6 {[%emt 0:00:00]} 47. Kf2 {[%emt 0:00:00]} Qb3 {[%emt 0:00:00]} 48. Rxe5 {[%emt 0:00:00]} Bxc4 {[%emt 0:00:00]} 49. f4 {[%emt 0:00:00]} h5 {[%emt 0:00:00]} 50. Ng1 {[%emt 0:00:00]} Qb6+ {[%emt 0:00:00]} 51. Kg3 {[%emt 0:00:00]} Bxf1 {[%emt 0:00:00]} 0-1